fUSD/lending_fUSD_20260526
["ID","MTS","AMOUNT","RATE_DAILY","PERIOD"]
[423010750,1779745881000,-800.0,0.00032877,30]
[423010752,1779745881000,-151.0,0.00032877,7]
[423010755,1779745881000,-151.0,0.00032877,7]
[423010734,1779745881000,-151.0,0.00032877,7]
[423010758,1779745881000,-800.0,0.00032877,30]
[423010764,1779745881000,-596.302988,0.00032877,7]
[423010753,1779745881000,-596.302988,0.00032877,7]
[423010759,1779745881000,-151.0,0.00032877,7]
[423010743,1779745881000,-800.0,0.00032877,30]
[423010731,1779745881000,-835.527152,0.00032877,7]
[423010728,1779745881000,-835.527152,0.00032877,7]
[423010718,1779745881000,-835.527152,0.00032877,7]
[423010705,1779745881000,-835.527152,0.00032877,7]
[423010704,1779745881000,-151.0,0.00032877,7]
[423010702,1779745881000,-151.0,0.00032877,7]
[423010703,1779745881000,-835.527152,0.00032877,7]
[423010701,1779745881000,-835.527152,0.00032877,7]
[423010717,1779745881000,-151.0,0.00032877,7]
[423010707,1779745881000,-835.527152,0.00032877,7]
[423010711,1779745881000,-151.0,0.00032877,7]
[423010708,1779745881000,-151.0,0.00032877,7]
[423010706,1779745881000,-151.0,0.00032877,7]
[423010712,1779745881000,-835.527152,0.00032877,7]
[423010714,1779745881000,-835.527152,0.00032877,7]
[423010709,1779745881000,-151.0,0.00032877,7]
[423010710,1779745881000,-835.527152,0.00032877,7]
[423010716,1779745881000,-835.527152,0.00032877,7]
[423010713,1779745881000,-151.0,0.00032877,7]
[423010715,1779745881000,-151.0,0.00032877,7]
[423010730,1779745881000,-835.527152,0.00032877,7]
[423010729,1779745881000,-159.896483,0.00032877,7]
[423010760,1779745881000,-800.0,0.00032877,30]
[423010724,1779745881000,-835.527152,0.00032877,7]
[423010720,1779745881000,-835.527152,0.00032877,7]
[423010722,1779745881000,-835.527152,0.00032877,7]
[423010721,1779745881000,-151.0,0.00032877,7]
[423010726,1779745881000,-835.527152,0.00032877,7]
[423010723,1779745881000,-151.0,0.00032877,7]
[423010725,1779745881000,-151.0,0.00032877,7]
[423010727,1779745881000,-151.0,0.00032877,7]
[423010765,1779745881000,-596.302988,0.00032877,7]
[423010719,1779745881000,-151.0,0.00032877,7]
[423010757,1779745881000,-596.302988,0.00032877,7]
[423010796,1779745881000,-151.0,0.00032877,7]
[423010804,1779745881000,-171.928635,0.00032877,7]
[423010800,1779745881000,-151.000004,0.00032877,7]
[423010795,1779745881000,-151.0,0.00032877,7]
[423010797,1779745881000,-151.0,0.00032877,7]
[423010801,1779745881000,-151.0,0.00032877,7]
[423010799,1779745881000,-151.0,0.00032877,7]
[423010802,1779745881000,-151.0,0.00032877,7]
[423010803,1779745881000,-151.0,0.00032877,7]
[423010798,1779745881000,-151.0,0.00032877,7]
[423010805,1779745881000,-162.725704,0.00032877,7]
[423010807,1779745881000,-503.901571,0.00032877,7]
[423010816,1779745881000,-503.901571,0.00032877,7]
[423010815,1779745881000,-151.0,0.00032877,7]
[423010806,1779745881000,-162.725704,0.00032877,7]
[423010810,1779745881000,-151.0,0.00032877,7]
[423010809,1779745881000,-503.901571,0.00032877,7]
[423010808,1779745881000,-162.725704,0.00032877,7]
[423010811,1779745881000,-162.725704,0.00032877,7]
[423010814,1779745881000,-162.725704,0.00032877,7]
[423010812,1779745881000,-503.901571,0.00032877,7]
[423010813,1779745881000,-151.0,0.00032877,7]
[423010817,1779745881000,-151.0,0.00032877,7]
[423010819,1779745881000,-151.0,0.00032877,7]
[423010818,1779745881000,-162.725704,0.00032877,7]
[423010821,1779745881000,-151.0,0.00032877,7]
[423010754,1779745881000,-800.0,0.00032877,30]
[423010794,1779745881000,-596.302982,0.00032877,7]
[423010785,1779745881000,-151.0,0.00032877,7]
[423010820,1779745881000,-503.901571,0.00032877,7]
[423010787,1779745881000,-596.302988,0.00032877,7]
[423010789,1779745881000,-596.302988,0.00032877,7]
[423010756,1779745881000,-800.0,0.00032877,30]
[423010762,1779745881000,-151.0,0.00032877,7]
[423010767,1779745881000,-596.302988,0.00032877,7]
[423010777,1779745881000,-151.0,0.00032877,7]
[423010779,1779745881000,-151.0,0.00032877,7]
[423010778,1779745881000,-596.302988,0.00032877,7]
[423010768,1779745881000,-151.0,0.00032877,7]
[423010774,1779745881000,-596.302988,0.00032877,7]
[423010776,1779745881000,-151.0,0.00032877,7]
[423010766,1779745881000,-151.0,0.00032877,7]
[423010775,1779745881000,-596.302988,0.00032877,7]
[423010773,1779745881000,-151.0,0.00032877,7]
[423010770,1779745881000,-596.302988,0.00032877,7]
[423010763,1779745881000,-800.0,0.00032877,30]
[423010772,1779745881000,-596.302988,0.00032877,7]
[423010771,1779745881000,-151.0,0.00032877,7]
[423010783,1779745881000,-151.0,0.00032877,7]
[423010786,1779745881000,-201.0,0.00032877,7]
[423010793,1779745881000,-596.302988,0.00032877,7]
[423010784,1779745881000,-596.302988,0.00032877,7]
[423010792,1779745881000,-596.302988,0.00032877,7]
[423010788,1779745881000,-210.75385583,0.00032877,7]
[423010782,1779745881000,-151.0,0.00032877,7]
[423010790,1779745881000,-596.302988,0.00032877,7]
[423010791,1779745881000,-596.302988,0.00032877,7]
[423010781,1779745881000,-596.302988,0.00032877,7]
[423010769,1779745881000,-151.0,0.00032877,7]
[423010780,1779745881000,-151.0,0.00032877,7]
[423010858,1779745882000,-162.725704,0.00032877,7]
[423010857,1779745882000,-800.0,0.00032877,30]
[423010855,1779745882000,-162.725704,0.00032877,7]
[423010859,1779745882000,-800.0,0.00032877,30]
[423010856,1779745882000,-503.901571,0.00032877,7]
[423010860,1779745882000,-503.901571,0.00032877,7]
[423010862,1779745882000,-162.725704,0.00032877,7]
[423010854,1779745882000,-164.278931,0.00032877,7]
[423010861,1779745882000,-800.0,0.00032877,30]
[423010864,1779745882000,-800.0,0.00032877,30]
[423010863,1779745882000,-503.901571,0.00032877,7]
[423010853,1779745882000,-503.901571,0.00032877,7]
[423010871,1779745882000,-503.901571,0.00032877,7]
[423010867,1779745882000,-503.901571,0.00032877,7]
[423010873,1779745882000,-800.0,0.00032877,30]
[423010868,1779745882000,-800.0,0.00032877,30]
[423010870,1779745882000,-800.0,0.00032877,30]
[423010865,1779745882000,-162.725704,0.00032877,7]
[423010869,1779745882000,-162.725695,0.00032877,7]
[423010872,1779745882000,-295.860613,0.00032877,7]
[423010874,1779745882000,-503.901579,0.00032877,7]
[423010886,1779745882000,-151.0,0.00032877,7]
[423010876,1779745882000,-295.860613,0.00032877,7]
[423010875,1779745882000,-800.0,0.00032877,30]
[423010877,1779745882000,-721.0,0.00032877,30]
[423010852,1779745882000,-162.725704,0.00032877,7]
[423010866,1779745882000,-800.0,0.00032877,30]
[423010849,1779745882000,-162.725704,0.00032877,7]
[423010837,1779745882000,-151.0,0.00032877,7]
[423010843,1779745882000,-503.901571,0.00032877,7]
[423010822,1779745882000,-151.0,0.00032877,7]
[423010826,1779745882000,-151.0,0.00032877,7]
[423010823,1779745882000,-162.725704,0.00032877,7]
[423010824,1779745882000,-503.901571,0.00032877,7]
[423010827,1779745882000,-162.725704,0.00032877,7]
[423010825,1779745882000,-151.0,0.00032877,7]
[423010829,1779745882000,-151.0,0.00032877,7]
[423010839,1779745882000,-162.725704,0.00032877,7]
[423010828,1779745882000,-503.901571,0.00032877,7]
[423010831,1779745882000,-162.725704,0.00032877,7]
[423010830,1779745882000,-151.0,0.00032877,7]
[423010833,1779745882000,-151.0,0.00032877,7]
[423010844,1779745882000,-162.725704,0.00032877,7]
[423010836,1779745882000,-162.725704,0.00032877,7]
[423010835,1779745882000,-503.901571,0.00032877,7]
[423010832,1779745882000,-503.901571,0.00032877,7]
[423010834,1779745882000,-151.0,0.00032877,7]
[423010841,1779745882000,-151.0,0.00032877,7]
[423010840,1779745882000,-503.901571,0.00032877,7]
[423010851,1779745882000,-151.0,0.00032877,7]
[423010845,1779745882000,-151.0,0.00032877,7]
[423010842,1779745882000,-172.241301,0.00032877,7]
[423010846,1779745882000,-162.725704,0.00032877,7]
[423010847,1779745882000,-503.901571,0.00032877,7]
[423010848,1779745882000,-151.0,0.00032877,7]
[423010850,1779745882000,-503.901571,0.00032877,7]
[423010838,1779745882000,-151.0,0.00032877,7]
[423010880,1779745882000,-151.0,0.00032877,7]
[423010878,1779745882000,-295.860613,0.00032877,7]
[423010881,1779745882000,-295.860613,0.00032877,7]
[423010915,1779745882000,-295.860613,0.00032877,7]
[423010912,1779745882000,-295.860613,0.00032877,7]
[423010917,1779745882000,-158.837251,0.00032877,7]
[423010916,1779745882000,-151.0,0.00032877,7]
[423010919,1779745882000,-158.837251,0.00032877,7]
[423010920,1779745882000,-295.860613,0.00032877,7]
[423010921,1779745882000,-151.0,0.00032877,7]
[423010918,1779745882000,-295.860613,0.00032877,7]
[423010923,1779745882000,-295.860613,0.00032877,7]
[423010924,1779745882000,-151.0,0.00032877,7]
[423010922,1779745882000,-158.837251,0.00032877,7]
[423010926,1779745882000,-295.860617,0.00032877,7]
[423010936,1779745882000,-158.837251,0.00032877,7]
[423010928,1779745882000,-158.837251,0.00032877,7]
[423010927,1779745882000,-151.0,0.00032877,7]
[423010935,1779745882000,-158.837251,0.00032877,7]
[423010932,1779745882000,-151.0,0.00032877,7]
[423010933,1779745882000,-191.771199,0.00032877,7]
[423010930,1779745882000,-151.0,0.00032877,7]
[423010929,1779745882000,-158.837251,0.00032877,7]
[423010931,1779745882000,-158.837251,0.00032877,7]
[423010934,1779745882000,-158.837251,0.00032877,7]
[423010937,1779745882000,-158.837251,0.00032877,7]
[423010939,1779745882000,-151.0,0.00032877,7]
[423010938,1779745882000,-158.837251,0.00032877,7]
[423010940,1779745882000,-151.0,0.00032877,7]
[423010879,1779745882000,-295.860613,0.00032877,7]
[423010913,1779745882000,-151.0,0.00032877,7]
[423010914,1779745882000,-158.837251,0.00032877,7]
[423010925,1779745882000,-158.837251,0.00032877,7]
[423010908,1779745882000,-158.837251,0.00032877,7]
[423010884,1779745882000,-151.0,0.00032877,7]
[423010911,1779745882000,-158.837251,0.00032877,7]
[423010883,1779745882000,-295.860613,0.00032877,7]
[423010885,1779745882000,-295.860613,0.00032877,7]
[423010882,1779745882000,-151.0,0.00032877,7]
[423010888,1779745882000,-151.0,0.00032877,7]
[423010898,1779745882000,-158.837251,0.00032877,7]
[423010887,1779745882000,-295.860613,0.00032877,7]
[423010899,1779745882000,-295.860613,0.00032877,7]
[423010890,1779745882000,-158.837251,0.00032877,7]
[423010891,1779745882000,-295.860613,0.00032877,7]
[423010896,1779745882000,-151.0,0.00032877,7]
[423010895,1779745882000,-295.860613,0.00032877,7]
[423010892,1779745882000,-151.0,0.00032877,7]
[423010889,1779745882000,-151.0,0.00032877,7]
[423010893,1779745882000,-151.0,0.00032877,7]
[423010907,1779745882000,-151.0,0.00032877,7]
[423010910,1779745882000,-151.0,0.00032877,7]
[423010905,1779745882000,-158.837251,0.00032877,7]
[423010902,1779745882000,-158.837251,0.00032877,7]
[423010906,1779745882000,-295.860613,0.00032877,7]
[423010904,1779745882000,-151.0,0.00032877,7]
[423010909,1779745882000,-295.860613,0.00032877,7]
[423010900,1779745882000,-151.209239,0.00032877,7]
[423010901,1779745882000,-151.0,0.00032877,7]
[423010894,1779745882000,-158.837251,0.00032877,7]
[423010897,1779745882000,-151.0,0.00032877,7]
[423010903,1779745882000,-295.860613,0.00032877,7]
[423010988,1779745883000,-719.725494,0.00032877,7]
[423010984,1779745883000,-719.725494,0.00032877,7]
[423010982,1779745883000,-719.725494,0.00032877,7]
[423010983,1779745883000,-719.725494,0.00032877,7]
[423010981,1779745883000,-719.725494,0.00032877,7]
[423010980,1779745883000,-719.725494,0.00032877,7]
[423010977,1779745883000,-719.725494,0.00032877,7]
[423010978,1779745883000,-719.725494,0.00032877,7]
[423010974,1779745883000,-151.0,0.00032877,7]
[423010986,1779745883000,-719.725494,0.00032877,7]
[423010975,1779745883000,-151.0,0.00032877,7]
[423010976,1779745883000,-152.003664,0.00032877,7]
[423010979,1779745883000,-719.725494,0.00032877,7]
[423010998,1779745883000,-719.725491,0.00032877,7]
[423011013,1779745883000,-150.0,0.00033,2]
[423010991,1779745883000,-719.725494,0.00032877,7]
[423010992,1779745883000,-719.725494,0.00032877,7]
[423010989,1779745883000,-719.725494,0.00032877,7]
[423010990,1779745883000,-719.725494,0.00032877,7]
[423010987,1779745883000,-196.384441,0.00032877,7]
[423010996,1779745883000,-719.725494,0.00032877,7]
[423010997,1779745883000,-719.725494,0.00032877,7]
[423010993,1779745883000,-719.725494,0.00032877,7]
[423010995,1779745883000,-719.725494,0.00032877,7]
[423010994,1779745883000,-719.725494,0.00032877,7]
[423011001,1779745883000,-500.0,0.00032877,2]
[423011011,1779745883000,-204.26,0.000329,120]
[423011012,1779745883000,-198.21,0.000329,120]
[423010985,1779745883000,-151.0,0.00032877,7]
[423010999,1779745883000,-1622.59,0.00032877,30]
[423010967,1779745883000,-151.0,0.00032877,7]
[423010948,1779745883000,-151.0,0.00032877,7]
[423010972,1779745883000,-151.0,0.00032877,7]
[423011000,1779745883000,-329.58,0.00032877,120]
[423010941,1779745883000,-151.0,0.00032877,7]
[423010945,1779745883000,-151.0,0.00032877,7]
[423010944,1779745883000,-151.0,0.00032877,7]
[423010942,1779745883000,-151.0,0.00032877,7]
[423010946,1779745883000,-151.0,0.00032877,7]
[423010943,1779745883000,-151.0,0.00032877,7]
[423010947,1779745883000,-151.0,0.00032877,7]
[423010950,1779745883000,-151.0,0.00032877,7]
[423010956,1779745883000,-151.0,0.00032877,7]
[423010957,1779745883000,-151.0,0.00032877,7]
[423010958,1779745883000,-151.0,0.00032877,7]
[423010959,1779745883000,-151.0,0.00032877,7]
[423010961,1779745883000,-151.0,0.00032877,7]
[423010949,1779745883000,-151.0,0.00032877,7]
[423010960,1779745883000,-151.0,0.00032877,7]
[423010951,1779745883000,-151.0,0.00032877,7]
[423010955,1779745883000,-151.0,0.00032877,7]
[423010952,1779745883000,-218.152279,0.00032877,7]
[423010953,1779745883000,-151.0,0.00032877,7]
[423010954,1779745883000,-151.0,0.00032877,7]
[423010962,1779745883000,-151.0,0.00032877,7]
[423010965,1779745883000,-151.0,0.00032877,7]
[423010973,1779745883000,-151.0,0.00032877,7]
[423010968,1779745883000,-151.0,0.00032877,7]
[423010969,1779745883000,-151.0,0.00032877,7]
[423010963,1779745883000,-151.0,0.00032877,7]
[423010964,1779745883000,-151.0,0.00032877,7]
[423010971,1779745883000,-151.0,0.00032877,7]
[423010970,1779745883000,-272.258635,0.00032877,7]
[423011005,1779745883000,-500.0,0.00032877,2]
[423010966,1779745883000,-151.0,0.00032877,7]
[423011007,1779745883000,-419.7764036,0.00032877,2]
[423011044,1779745883000,-1044.01072402,0.00033076,7]
[423011043,1779745883000,-996.45055064,0.00033029,7]
[423011052,1779745883000,-387.080921,0.000332,16]
[423011069,1779745883000,-160.36458862,0.000338,120]
[423011047,1779745883000,-996.21134489,0.00033086,7]
[423011042,1779745883000,-980.36827103,0.00033029,7]
[423011045,1779745883000,-1052.28000543,0.00033086,7]
[423011053,1779745883000,-500.0,0.00033205,2]
[423011048,1779745883000,-897.71,0.000331,30]
[423011050,1779745883000,-306.523076,0.00033117,16]
[423011051,1779745883000,-152.0,0.00033132,13]
[423011046,1779745883000,-1027.45189877,0.00033086,7]
[423011049,1779745883000,-980.6078,0.000331,20]
[423011066,1779745883000,-3782.98876428,0.00033787,74]
[423011055,1779745883000,-303.717243,0.000333,120]
[423011065,1779745883000,-151.36785639,0.00033562,30]
[423011056,1779745883000,-1009.16436151,0.00033326,7]
[423011054,1779745883000,-238.96999999,0.00033268,30]
[423011061,1779745883000,-12460.0,0.00033463,7]
[423011062,1779745883000,-1233.22600463,0.000335,2]
[423011060,1779745883000,-6323.21,0.00033434,2]
[423011063,1779745883000,-9484.82,0.00033541,7]
[423011057,1779745883000,-1205.01647528,0.00033327,7]
[423011058,1779745883000,-975.55544016,0.00033327,7]
[423011059,1779745883000,-206.34,0.00033403,7]
[423011067,1779745883000,-721.12765534,0.00033799,2]
[423011070,1779745883000,-1000.0,0.00033854,2]
[423011068,1779745883000,-693.39197629,0.00033799,2]
[423011002,1779745883000,-500.0,0.00032877,2]
[423011041,1779745883000,-1955.00858955,0.00033029,7]
[423011034,1779745883000,-2866.66304971,0.00033027,7]
[423011064,1779745883000,-5269.34,0.00033541,7]
[423011031,1779745883000,-2000.0,0.00033,7]
[423011033,1779745883000,-1012.60566277,0.0003302,2]
[423011006,1779745883000,-500.0,0.00032877,2]
[423011004,1779745883000,-500.0,0.00032877,2]
[423011008,1779745883000,-300.0,0.00032877,2]
[423011009,1779745883000,-175.20586195,0.00032877,120]
[423011010,1779745883000,-2658.8,0.000329,120]
[423011014,1779745883000,-150.0,0.00033,2]
[423011016,1779745883000,-76721.02895072,0.00033,5]
[423011021,1779745883000,-1538.06541534,0.00033,5]
[423011024,1779745883000,-361.987293,0.00033,120]
[423011015,1779745883000,-150.0,0.00033,2]
[423011026,1779745883000,-1164.43,0.00033,30]
[423011020,1779745883000,-14191.84055749,0.00033,2]
[423011025,1779745883000,-513.8703724,0.00033,5]
[423011017,1779745883000,-52211.78123188,0.00033,2]
[423011003,1779745883000,-500.0,0.00032877,2]
[423011022,1779745883000,-4046.84639067,0.00033,30]
[423011018,1779745883000,-797.42521035,0.00033,7]
[423011037,1779745883000,-1462.33793505,0.00033029,7]
[423011035,1779745883000,-915.99375784,0.00033029,7]
[423011029,1779745883000,-2500.0,0.00033,34]
[423011030,1779745883000,-572.644868,0.00033,14]
[423011027,1779745883000,-500.0,0.00033,2]
[423011036,1779745883000,-1773.41441662,0.00033029,7]
[423011040,1779745883000,-1014.12676155,0.00033029,7]
[423011019,1779745883000,-38013.8726415,0.00033,3]
[423011039,1779745883000,-908.27369989,0.00033029,7]
[423011023,1779745883000,-500.0,0.00033,60]
[423011032,1779745883000,-350.0,0.00033014,5]
[423011028,1779745883000,-200.6225939,0.00033,30]
[423011038,1779745883000,-1971.70567572,0.00033029,7]
[423011110,1779745884000,-5000.0,0.00034302,30]
[423011104,1779745884000,-1467.71076691,0.000342,30]
[423011102,1779745884000,-239.087999,0.000342,21]
[423011099,1779745884000,-6323.21,0.00034119,2]
[423011105,1779745884000,-9484.82,0.00034226,7]
[423011103,1779745884000,-897.71,0.000342,30]
[423011109,1779745884000,-7468.27512612,0.00034262,30]
[423011120,1779745884000,-1183.14788847,0.00034371,7]
[423011119,1779745884000,-1059.65264987,0.00034371,7]
[423011108,1779745884000,-354.58,0.00034261,10]
[423011101,1779745884000,-238.821052,0.000342,21]
[423011106,1779745884000,-5269.34,0.00034226,7]
[423011112,1779745884000,-1181.37327324,0.00034362,2]
[423011111,1779745884000,-150.0,0.00034354,120]
[423011117,1779745884000,-1706.06092422,0.00034371,7]
[423011115,1779745884000,-1068.65938415,0.00034371,7]
[423011118,1779745884000,-2300.32328834,0.00034371,7]
[423011114,1779745884000,-3344.44022466,0.00034369,7]
[423011116,1779745884000,-2068.98348606,0.00034371,7]
[423011123,1779745884000,-1198.6938819,0.00034429,7]
[423011121,1779745884000,-2280.84335447,0.00034371,7]
[423011122,1779745884000,-1143.76298287,0.00034371,7]
[423011124,1779745884000,-238.96999999,0.00034442,30]
[423011100,1779745884000,-3548.7,0.00034182,7]
[423011125,1779745884000,-1012.0,0.000345,30]
[423011113,1779745884000,-7541.78,0.00034364,30]
[423011096,1779745884000,-2500.0,0.00034,35]
[423011092,1779745884000,-3856.753,0.00034,20]
[423011107,1779745884000,-300.0,0.00034247,2]
[423011132,1779745884000,-5385.22489,0.00034622,30]
[423011073,1779745884000,-452.0,0.00033874,30]
[423011075,1779745884000,-208.0,0.00033874,30]
[423011074,1779745884000,-1497.0,0.00033874,30]
[423011079,1779745884000,-164.0,0.00033876,30]
[423011080,1779745884000,-2067.0,0.00033876,30]
[423011078,1779745884000,-156.0,0.00033876,30]
[423011076,1779745884000,-357.0,0.00033874,30]
[423011071,1779745884000,-154.0,0.00033874,30]
[423011077,1779745884000,-1789.0,0.00033876,30]
[423011072,1779745884000,-156.0,0.00033874,30]
[423011093,1779745884000,-3856.753,0.00034,20]
[423011098,1779745884000,-152.0,0.00034061,14]
[423011082,1779745884000,-157.0,0.00033876,30]
[423011084,1779745884000,-350.0,0.00033973,5]
[423011083,1779745884000,-2658.8,0.000339,120]
[423011086,1779745884000,-167.56,0.00034,120]
[423011087,1779745884000,-162.43291705,0.00034,120]
[423011089,1779745884000,-162.008,0.00034,120]
[423011085,1779745884000,-206.34,0.00033976,30]
[423011091,1779745884000,-2795.1,0.00034,32]
[423011090,1779745884000,-344.564,0.00034,30]
[423011088,1779745884000,-1164.43,0.00034,30]
[423011094,1779745884000,-3856.75,0.00034,10]
[423011095,1779745884000,-10813.92,0.00034,14]
[423011097,1779745884000,-750.0,0.00034,2]
[423011081,1779745884000,-544.0,0.00033876,30]
[423011129,1779745884000,-49482.06,0.00034544,60]
[423011126,1779745884000,-299.36,0.00034544,60]
[423011174,1779745884000,-44466.17,0.00035,15]
[423011161,1779745884000,-350.0,0.00034931,5]
[423011163,1779745884000,-237.19527838,0.00034974,120]
[423011170,1779745884000,-172081.98636019,0.00035,4]
[423011169,1779745884000,-162.78857742,0.00035,30]
[423011160,1779745884000,-5269.36,0.00034911,7]
[423011166,1779745884000,-150.0,0.00035,7]
[423011165,1779745884000,-152.0,0.0003499,15]
[423011164,1779745884000,-821.137989,0.00034983,30]
[423011167,1779745884000,-150.0,0.00035,7]
[423011168,1779745884000,-150.0,0.00035,7]
[423011171,1779745884000,-1952.4106499,0.00035,2]
[423011175,1779745884000,-260.34176785,0.00035,120]
[423011176,1779745884000,-3696.3551261,0.00035,2]
[423011173,1779745884000,-526.0,0.00035,5]
[423011177,1779745884000,-258.6986994,0.00035,7]
[423011178,1779745884000,-356.77974611,0.00035,30]
[423011180,1779745884000,-9418.2956,0.00035,120]
[423011179,1779745884000,-14454.0,0.00035,30]
[423011182,1779745884000,-631.37868878,0.00035,60]
[423011183,1779745884000,-301.0,0.00035,28]
[423011172,1779745884000,-2790.50544696,0.00035,10]
[423011181,1779745884000,-150.0,0.00035,2]
[423011185,1779745884000,-4435.0,0.00035,20]
[423011184,1779745884000,-1000.0,0.00035,2]
[423011130,1779745884000,-206.34,0.00034549,2]
[423011158,1779745884000,-2667.73,0.000349,10]
[423011159,1779745884000,-9484.83,0.00034911,7]
[423011162,1779745884000,-160.03157175,0.00034974,120]
[423011147,1779745884000,-357.0,0.00034874,30]
[423011128,1779745884000,-1098.33,0.00034544,60]
[423011131,1779745884000,-1349.41882709,0.00034568,14]
[423011127,1779745884000,-2153.96,0.00034544,60]
[423011133,1779745884000,-1177.35842176,0.00034677,7]
[423011144,1779745884000,-452.0,0.00034874,30]
[423011134,1779745884000,-1405.8525545,0.00034679,7]
[423011145,1779745884000,-1497.0,0.00034874,30]
[423011139,1779745884000,-286065.3951648,0.000348,30]
[423011155,1779745884000,-2658.8,0.000349,120]
[423011136,1779745884000,-150.99018527,0.00034789,7]
[423011143,1779745884000,-156.0,0.00034874,30]
[423011137,1779745884000,-1500.0,0.00034795,2]
[423011135,1779745884000,-1138.14801352,0.00034679,7]
[423011138,1779745884000,-568.36237834,0.00034795,2]
[423011140,1779745884000,-5000.0,0.000348,7]
[423011141,1779745884000,-6323.21,0.00034804,2]
[423011157,1779745884000,-2667.729,0.000349,20]
[423011150,1779745884000,-164.0,0.00034876,30]
[423011149,1779745884000,-156.0,0.00034876,30]
[423011152,1779745884000,-544.0,0.00034876,30]
[423011154,1779745884000,-10664.67343203,0.0003488,120]
[423011153,1779745884000,-157.0,0.00034876,30]
[423011151,1779745884000,-2067.0,0.00034876,30]
[423011148,1779745884000,-1789.0,0.00034876,30]
[423011146,1779745884000,-208.0,0.00034874,30]
[423011142,1779745884000,-154.0,0.00034874,30]
[423011156,1779745884000,-2667.729,0.000349,30]
[423011226,1779745885000,-8300.3385993,0.0003507,120]
[423011229,1779745885000,-150.77608026,0.00035144,120]
[423011231,1779745885000,-524.19980739,0.00035156,30]
[423011230,1779745885000,-150.0,0.00035156,30]
[423011228,1779745885000,-231.15,0.0003513,30]
[423011223,1779745885000,-193.42806038,0.00035,120]
[423011212,1779745885000,-2200.66896885,0.00035,7]
[423011222,1779745885000,-10299.15724277,0.00035,30]
[423011217,1779745885000,-828.0,0.00035,120]
[423011213,1779745885000,-1016.74235504,0.00035,120]
[423011214,1779745885000,-5000.0,0.00035,2]
[423011224,1779745885000,-2500.0,0.00035,36]
[423011225,1779745885000,-369.62768156,0.00035,4]
[423011233,1779745885000,-2014.61092753,0.00035156,30]
[423011243,1779745885000,-418.0,0.00035222,2]
[423011227,1779745885000,-206.34,0.00035123,7]
[423011234,1779745885000,-150.0,0.00035156,30]
[423011247,1779745885000,-329.20671708,0.00035351,3]
[423011236,1779745885000,-112315.0,0.00035199,30]
[423011246,1779745885000,-2500.0,0.000353,14]
[423011235,1779745885000,-166.46383521,0.00035156,30]
[423011242,1779745885000,-931.0,0.00035222,2]
[423011240,1779745885000,-3547.0,0.00035222,2]
[423011238,1779745885000,-314.589473,0.000352,26]
[423011239,1779745885000,-626.0,0.00035222,2]
[423011237,1779745885000,-311.3125,0.000352,26]
[423011241,1779745885000,-519.0,0.00035222,2]
[423011218,1779745885000,-200271.93505547,0.00035,10]
[423011232,1779745885000,-150.0,0.00035156,30]
[423011221,1779745885000,-52500.0,0.00035,120]
[423011194,1779745885000,-6286.69030891,0.00035,30]
[423011211,1779745885000,-106549.72379126,0.00035,7]
[423011195,1779745885000,-500.0,0.00035,120]